Cogmind - Beta 14 @@@ ROGUE MODE // 2025.03.05 @ 23:03:48 Player: Cog on my mind Result: Destroyed by S-27 Virus with Autogun Performance ------------- Evolutions (6) 3000 Regions Visited (21) 4200 Robots Destroyed (245) 1225 Value Destroyed (8202) 8202 Prototype IDs (63) 1260 Alien Tech Used (0) 0 Bonus (919) 919 TOTAL SCORE: 18806 Bonus ------- High Alert Combat Kills 267 Follower Combat Kills 1774 Aligned with FarCom 300 Friendly Fire -1422 Cogmind --------- Core Integrity 0/1150 Matter 279/300 Energy 100/100 System Corruption 28% Temperature Cool (0) Movement Core (50) Location -4/Upper Caves Parts ------- > --- POWER (3) -------- (None) > --- PROPULSION (6) --- (None) > --- UTILITY (6) ------ Enhanced Optical Array > --- WEAPON (4) ------- (None) > --- INVENTORY (5) ---- Light Antimatter Reactor Medium Storage Unit Drone Bay (1/2) Peak State ------------ > --- POWER ------------ Light Antimatter Reactor Quantum-Fission Reactor > --- PROPULSION ------- Hovering Gyrokinetic-Siege Exoskeleton > --- UTILITY ---------- Armored Scrap Engine Improved Cooling System Medium Storage Unit Machine Analyzer Experimental Optical Array > --- WEAPON ----------- Plasma Rifle Improved Remote Datajack Hpw. Charged Tesla Construct/C > --- INVENTORY -------- Advanced Heat Sink Advanced Heat Sink Advanced Coolant Injector Advanced Coolant Injector Advanced Sensor Array Improved Weapon Cycler [Rating: 122] Favorites ----------- Power Constructs Engine Improved Ion Engine Power Core Micro Fission Core Reactor Constructs Propulsion Constructs Treads Light Treads Leg VSS Leg Wheel Compact Wheel Hover Unit Constructs Utility Large Storage Unit Device Armored Scrap Engine Storage Large Storage Unit Processor Machine Analyzer Hackware Hacking Suite Protection Hardened Medium Armor Plating Weapon Constructs Energy Gun Gatling Laser Energy Cannon Constructs Ballistic Gun Constructs Ballistic Cannon Improved Light Cannon Launcher Precision Rocket Launcher Special Weapon Improved Remote Datajack Slashing Weapon Nanosword Special Melee Weapon Improved Datajack Build | -11 -10 -10 -10 -9 -8 -8 -8 -6 -6 -6 -6 -6 -6 -5 -5 -5 -5 -4 -4 -4 -4 ------- Run | Yrd Mat Min Exi Min Mat Sto Rec Fac Was Fac Low Low Zio Pro Fac Was Fac Fac Was Fac Upp Slots Evolved 12 | . . . . . 4 . . 4 . . . . . . 2 . . 2 . . . Power 2 | . . . . . . . . 1 . . . . . . . . . 1 . . . Propulsion 4 | . . . . . 2 . . 1 . . . . . . 1 . . . . . . Utility 4 | . . . . . 2 . . 1 . . . . . . 1 . . . . . . Weapon 2 | . . . . . . . . 1 . . . . . . . . . 1 . . . Parts Attached 165 | 7 7 3 . 6 25 36 2 7 3 10 9 3 . 3 11 4 3 4 1 16 5 Power 18 | 1 2 2 . . 4 1 . . . . . . . . 1 . . 1 . 6 . Engine 11 | 1 2 2 . . 3 1 . . . . . . . . . . . . . 2 . Core 3 | . . . . . 1 . . . . . . . . . 1 . . 1 . . . Reactor 4 | . . . . . . . . . . . . . . . . . . . . 4 . Propulsion 25 | 2 . 1 . 2 11 6 1 1 . 1 . . . . . . . . . . . Treads 17 | 2 . 1 . 1 8 5 . . . . . . . . . . . . . . . Leg 2 | . . . . . 2 . . . . . . . . . . . . . . . . Wheel 5 | . . . . 1 1 . 1 1 . 1 . . . . . . . . . . . Hover 1 | . . . . . . 1 . . . . . . . . . . . . . . . Flight . | . . . . . . . . . . . . . . . . . . . . . . Utility 55 | 2 2 . . 1 4 4 1 4 . 5 5 3 . 1 7 1 2 2 1 8 2 Device 34 | 1 . . . . 1 3 1 3 . 3 4 3 . 1 4 1 1 2 1 4 1 Storage 4 | 1 2 . . . . . . . . . . . . . . . . . . 1 . Processor 6 | . . . . . . . . . . 1 1 . . . . . 1 . . 2 1 Hackware 6 | . . . . . 1 1 . . . . . . . . 3 . . . . 1 . Protection 5 | . . . . 1 2 . . 1 . 1 . . . . . . . . . . . Artifact . | . . . . . . . . . . . . . . . . . . . . . . Weapon 67 | 2 3 . . 3 6 25 . 2 3 4 4 . . 2 3 3 1 1 . 2 3 Energy Gun 22 | 1 . . . . 5 15 . . . . . . . . . . . . . 1 . Energy Cannon 3 | . . . . . . 2 . . . 1 . . . . . . . . . . . Ballistic Gun 5 | 1 1 . . . 1 1 . 1 . . . . . . . . . . . . . Ballistic Cannon 6 | . 2 . . 3 . . . . . . . . . . 1 . . . . . . Launcher 19 | . . . . . . 6 . 1 1 1 2 . . 2 . 3 . . . . 3 Special Weapon 3 | . . . . . . . . . . . . . . . 1 . . 1 . 1 . Impact Weapon . | . . . . . . . . . . . . . . . . . . . . . . Slashing Weapon 6 | . . . . . . 1 . . 2 1 1 . . . . . 1 . . . . Piercing Weapon . | . . . . . . . . . . . . . . . . . . . . . . Special Melee Weapon 3 | . . . . . . . . . . 1 1 . . . 1 . . . . . . Unidentified Prototypes 20 | . . . . . 2 11 1 2 1 1 . . . . . . . . . 2 . Corrupted Parts 1 | . . . . . . . . . . . . . . . . . . . 1 . . System Corruption 6 | . . . . . . . . . . . . . . . . . . . 6 . . Parts Lost 22 | . . . . . 2 1 . 1 . . 1 . . 2 2 . 1 1 1 9 1 Power 10 | . . . . . 1 . . . . . . . . 2 . . 1 . 1 5 . Propulsion 3 | . . . . . 1 . . . . . . . . . . . . . . 2 . Utility 4 | . . . . . . 1 . . . . 1 . . . 1 . . . . 1 . Weapon 5 | . . . . . . . . 1 . . . . . . 1 . . 1 . 1 1 Highest Loss Streak 3 | . . . . . 1 1 . 1 . . 1 . . 1 1 . 1 1 1 3 1 To Critical Strikes . | . . . . . . . . . . . . . . . . . . . . . . Average Slot Usage (%) 65 | . 100 100 73 99 97 99 83 52 62 53 49 49 46 47 40 33 43 42 33 43 5 Engine 4 | . 14 14 14 14 8 8 8 1 . 1 . . . . . 1 . . . 1 . Core 1 | . . . . . . . . 1 . . 1 6 6 5 1 . 3 6 4 . . Reactor 1 | . . . . . . . . 2 6 4 4 . . . . 1 1 . . 6 . Treads 12 | . 28 28 28 26 26 35 23 1 . 1 1 3 6 4 . . . . . 3 . Leg 1 | . . . . . 8 . 1 4 6 2 . . . 1 1 . 1 . . . . Wheel 1 | . . . . 1 1 . 2 7 9 6 . . . . . . 3 . . . . Device 11 | . 14 14 14 7 8 13 13 10 13 12 9 13 13 15 17 10 11 11 10 9 2 Storage 7 | . 14 14 14 14 9 9 9 6 6 6 6 6 6 6 5 . . . . 3 . Processor 2 | . . . . . . . . . . . 6 6 6 3 . . 5 5 5 9 2 Hackware 2 | . . . . . 8 9 9 6 6 6 . . . . 2 . . . . 1 . Protection 1 | . . . . 6 8 4 . . . . . . . . . . . . . . . Energy Gun 3 | . 4 . . . 14 17 12 . 6 1 . . . . . 2 5 3 . . . Energy Cannon 1 | . . . . . . . . 1 . 1 6 3 6 2 3 . 3 . . 1 . Ballistic Cannon 6 | . 18 28 2 28 2 . . 3 1 2 . 2 . 3 1 3 1 1 5 3 . Peak Build Rating 122 | 7 10 11 11 21 40 44 49 65 70 81 87 87 76 81 86 80 86 96 96 122 18 Average Rating 55 | 4 8 10 9 17 36 39 41 54 58 69 78 81 76 75 75 72 77 86 82 100 7 On Entrance 49 | . 7 10 11 10 20 39 40 44 54 60 70 87 76 76 70 80 80 79 96 76 2 Naked Turns 153 | . . . . . . . . . . . . . . . . . . . . 28 125 Heaviest Build 60 | 12 34 36 36 42 45 49 43 40 44 52 60 57 50 53 42 38 35 27 25 51 6 Greatest Support 233 | 40 40 40 40 40 86 86 86 74 26 61 61 72 72 72 72 55 64 134 134 233 3 Greatest Overweight (x) 8 | . . . . 2 3 . 1 3 2 3 1 1 . . . 8 . 6 4 5 1 Average Overweight (x) . | . . . . . . . . . 1 1 . . . . . 3 . 2 . . . Largest Inventory Capacity 15 | 8 15 15 15 15 15 15 15 15 15 15 15 15 15 15 15 15 5 5 5 10 5 Average Capacity 12 | 6 11 15 15 15 15 15 15 15 15 15 15 15 15 15 15 5 5 5 5 8 5 Most Carried 15 | . 10 12 15 15 15 15 15 14 15 15 15 15 15 15 13 14 4 5 5 10 5 Average Carried 11 | . 6 10 13 14 14 14 13 13 13 14 13 14 15 14 12 5 3 4 4 6 4 Final Capacity 15 | 8 15 15 15 15 15 15 15 15 15 15 15 15 15 15 15 5 5 5 5 5 5 Final Carried 15 | . 10 11 15 14 15 15 11 14 15 14 15 15 15 13 13 5 4 4 5 5 3 Scrap Engine Consumption 221 | . . . . . . . 20 22 12 24 12 7 . 4 17 34 17 6 6 40 . Constructs Created 13 | . . . . . . . 3 1 . . . . . . . 5 . 1 . 3 . Constructs Modified 78 | . . . . . . . 5 9 4 10 4 4 . 2 7 7 7 3 . 16 . Class Distribution -------------------- 52% | Construct 37% | Mutant 4% | Commander-Mutant Dominant Class ---------------- Mutant | -10/Materials Mutant | -10/Mines Mutant | -10/Exiles Mutant | -9/Mines Mutant | -8/Materials Mutant | -8/Storage Commander-Mutant | -8/Recycling Construct | -6/Factory Construct | -6/Waste Construct | -6/Factory Construct | -6/Lower Caves Construct | -6/Lower Caves Construct | -6/Zion Construct | -5/Proximity Caves Construct | -5/Factory Construct | -5/Waste Construct | -5/Factory Construct | -4/Factory Construct | -4/Waste Construct | -4/Factory Mutant | -4/Upper Caves Resources | -11 -10 -10 -10 -9 -8 -8 -8 -6 -6 -6 -6 -6 -6 -5 -5 -5 -5 -4 -4 -4 -4 ----------- Run | Yrd Mat Min Exi Min Mat Sto Rec Fac Was Fac Low Low Zio Pro Fac Was Fac Fac Was Fac Upp Matter Collected 5330 | 275 354 169 18 260 750 460 38 257 395 217 297 88 . 228 542 159 55 168 . 429 171 Remotely . | . . . . . . . . . . . . . . . . . . . . . . Salvage Created 11578 | 148 535 89 . 105 1447 1374 159 1077 1279 371 255 90 . 545 857 352 189 417 . 2202 87 Parts 464 | 10 33 5 . 14 67 64 8 43 1 14 18 1 . 26 31 . 8 22 . 96 3 Haulers Intercepted 19 | . 1 . . . 6 5 . 3 . 3 . . . . . . . . . 1 . Recyclers Shooed 10 | 1 1 . . . 2 1 . . . . . . . . . . . 4 . 1 . Parts Field Recycled . | . . . . . . . . . . . . . . . . . . . . . . Retrieved Matter . | . . . . . . . . . . . . . . . . . . . . . . Parts Self-Destructed 53 | . . . . . . . . . . . 25 10 . 16 . . . . . . 2 Prevented 9 | . . . . . . . . . . . 8 . . 1 . . . . . . . Kills | -11 -10 -10 -10 -9 -8 -8 -8 -6 -6 -6 -6 -6 -6 -5 -5 -5 -5 -4 -4 -4 -4 ------- Run | Yrd Mat Min Exi Min Mat Sto Rec Fac Was Fac Low Low Zio Pro Fac Was Fac Fac Was Fac Upp Combat Hostiles Destroyed 154 | . 9 1 . 7 22 28 . 14 6 2 9 2 . 19 6 1 2 3 . 20 3 Melee 2 | . . . . . . . . . . . . . . 2 . . . . . . . Guns 40 | . 2 . . . 15 17 . 2 . . . . . . . . 2 2 . . . Cannons 58 | . 7 1 . 7 7 . . 6 . . 2 1 . 2 6 . . . . 19 . AOE 48 | . . . . . . 9 . 5 6 2 7 . . 15 . 1 . . . . 3 Classes Destroyed 23 | 2 6 1 . 2 2 2 1 1 1 . 2 1 . 2 . . . . . . . Worker 16 | . 1 . . 2 2 2 . 2 . 1 . . . . 1 . . 2 . 3 . Builder 12 | . . . . . . 1 . 1 . . . . . . . . 1 1 . 8 . Tunneler 6 | 3 . . . . 2 . . . . . . . . . . . . 1 . . . Hauler 19 | . 1 . . . 6 5 . 3 . 3 . . . . . . . . . 1 . Recycler 15 | 1 3 1 . . 1 . 2 . . . . . . . 3 . . 1 . 3 . Minesweeper 1 | . . . . . . . . . . . 1 . . . . . . . . . . Mechanic 2 | . . 1 . . . 1 . . . . . . . . . . . . . . . Operator 2 | . 1 . . . . 1 . . . . . . . . . . . . . . . Drone 2 | . . . . . . . . . . . . . . 2 . . . . . . . Watcher 15 | . 3 . . . 5 1 . . . 1 . . . . 1 . 1 . . 3 . Swarmer 26 | . 3 1 . 2 . 6 . . . 2 7 1 . 3 . . . . . . 1 Grunt 72 | . 6 . . 2 16 13 . 12 . . . . . 8 . . . 1 . 12 2 Brawler 3 | . . . . . . 1 . 1 . . . . . . 1 . . . . . . Duelist 3 | . . . . . . . . . . . 1 . . 1 1 . . . . . . Protector 1 | . . . . . . . . . . . . . . 1 . . . . . . . Sentry 15 | . . . . . 4 8 . . . . 1 . . 1 . . 1 . . . . Demolisher 1 | . . . . 1 . . . . . . . . . . . . . . . . . Specialist 4 | . . . . . 2 . . . . . . . . . 2 . . . . . . Hunter 6 | . . . . . . . . . . . . 1 . 3 . . 1 1 . . . Programmer 12 | . . . . . . . . 1 . . . . . . 2 . . 1 . 8 . Compactor 7 | . . . . . . . . . 6 . . . . . . 1 . . . . . Scientist 1 | . . . . . . . 1 . . . . . . . . . . . . . . Assembled 2 | . . . . 2 . . . . . . . . . . . . . . . . . Surgeon 1 | . . . . . . . . . . . . . . . . 1 . . . . . Wasp 3 | . . . . . . . . . . . . . . . . 3 . . . . . Savage 1 | . . . . . . . . . . . . . . . . 1 . . . . . Best Kill Streak 11 | 4 5 2 . 2 7 10 1 5 3 3 5 2 . 11 5 1 2 5 . 6 2 Combat Bots Only 11 | . 3 1 . 2 6 6 . 5 3 2 4 2 . 11 3 1 1 2 . 6 2 Max Kills in Single Turn 4 | 1 2 1 . 2 2 4 1 4 1 3 4 1 . 3 1 3 1 1 . 1 2 Gunslinging 1 | . 1 . . . . . . . . . . . . . . . . . . . . Exploded 4 | . . . . . . 3 . 4 1 2 4 . . 3 . 1 . . . . 2 Melee 1 | . . . . . . . . . . . . . . 1 . . . . . . . Uniques/NPCs Destroyed . | . . . . . . . . . . . . . . . . . . . . . . Combat | -11 -10 -10 -10 -9 -8 -8 -8 -6 -6 -6 -6 -6 -6 -5 -5 -5 -5 -4 -4 -4 -4 -------- Run | Yrd Mat Min Exi Min Mat Sto Rec Fac Was Fac Low Low Zio Pro Fac Was Fac Fac Was Fac Upp Hostile Shots Fired 1001 | . 33 20 . 33 59 75 3 54 . 25 30 20 46 121 79 2 43 67 3 250 38 Missed 333 | . 13 9 . 8 25 23 . 13 . 12 12 7 19 28 35 . 19 24 . 75 11 Damage Taken 12231 | . 194 168 . 293 520 783 106 930 . 172 299 247 415 1607 948 130 402 822 131 3538 526 Core 1752 | . 39 6 . 34 30 45 . 128 . . 42 41 51 85 78 . 22 121 . 618 412 Absorbed by Shields . | . . . . . . . . . . . . . . . . . . . . . . Regen/Repaired (Parts) 3912 | . . . . . . . . 263 198 34 495 341 . 594 664 483 12 248 . 580 . Core Remaining (%) 80 | 100 . . . 68 . . 86 . . . . . . 59 . . 90 . . . . Volleys Fired 614 | 5 43 15 . 16 81 76 16 56 25 20 15 5 1 25 32 3 10 26 . 137 7 Largest 2 | 2 2 2 . 2 2 2 2 1 1 1 1 1 1 1 1 1 2 2 . 1 1 Hottest 262 | 70 78 78 . 87 160 160 136 142 43 262 262 262 256 256 256 52 117 88 . 156 46 Shots Fired 869 | 10 86 30 . 33 162 138 24 56 25 20 15 5 1 25 32 4 20 45 . 132 6 Gun 355 | 10 28 . . . 100 130 24 13 . . . . . . . . 10 40 . . . Cannon 447 | . 58 30 . 33 62 . . 41 . 19 9 5 1 11 32 . 10 4 . 132 . Launcher 66 | . . . . . . 8 . 2 25 1 6 . . 14 . 4 . . . . 6 Special 1 | . . . . . . . . . . . . . . . . . . 1 . . . Kinetic 415 | 5 72 30 . 33 62 . . 30 . 17 . . 1 11 10 . 4 21 . 119 . Thermal 358 | 5 14 . . . 100 130 24 24 . 2 . . . . 22 . 16 19 . 2 . Explosive 66 | . . . . . . 8 . 2 25 1 6 . . 14 . 4 . . . . 6 Electromagnetic 29 | . . . . . . . . . . . 9 5 . . . . . 4 . 11 . Robot Hit Streak 24 | 5 13 5 . 5 10 24 11 19 8 3 7 3 2 5 9 2 9 7 . 13 . Robot Miss Streak 6 | 1 2 6 . 3 6 4 2 3 1 2 1 2 . 2 3 1 1 3 . 4 . Penetration Max 1 | . . . . 1 1 . . 1 . . . . . . . . . 1 . . . Secondary Targets 4 | . 1 . . . . 3 . . . . . . . . . . . . . . . Max Gunslinging Chain 1 | . 1 . . . . 1 . . . . . . . . . . . . . . . Shots Hit Robots 555 | 7 51 16 . 17 107 88 19 39 18 15 18 3 1 14 22 2 14 23 . 81 . Core Hits 376 | 5 20 6 . 8 80 62 6 28 15 7 7 1 . 36 11 21 8 11 . 33 11 Critical Kills 1 | 1 . . . . . . . . . . . . . . . . . . . . . Critical Parts Destroyed . | . . . . . . . . . . . . . . . . . . . . . . Critical Strikes 20 | 1 4 2 . 2 2 7 . . . . . . . . . . . . . 2 . Burn 8 | . 1 . . . . 7 . . . . . . . . . . . . . . . Destroy 1 | 1 . . . . . . . . . . . . . . . . . . . . . Blast 11 | . 3 2 . 2 2 . . . . . . . . . . . . . . 2 . Melee Attacks 23 | . . . . . . 1 . . . 6 10 . . . . . 5 1 . . . Impact . | . . . . . . . . . . . . . . . . . . . . . . Slashing 12 | . . . . . . 1 . . . 5 . . . . . . 5 1 . . . Piercing . | . . . . . . . . . . . . . . . . . . . . . . Sneak Attacks 13 | . . . . . . . . . . 2 10 . . . . . . 1 . . . Combat Hostiles . | . . . . . . . . . . . . . . . . . . . . . . Follow-up Attacks . | . . . . . . . . . . . . . . . . . . . . . . Damage Inflicted 30941 | 81 949 414 . 449 2614 3109 355 1795 3850 1050 1183 235 41 2420 1718 2220 354 942 . 6557 605 Guns 5442 | 81 223 . . . 1798 1876 355 227 . . . . . . . . 248 634 . . . Cannons 13632 | . 726 414 . 449 816 . . 1021 . 534 525 235 41 299 1718 . 106 191 . 6557 . Explosions 11446 | . . . . . . 1233 . 547 3850 240 658 . . 2093 . 2220 . . . . 605 Melee 390 | . . . . . . . . . . 276 . . . . . . . 114 . . . Ramming 31 | . . . . . . . . . . . . . . 28 . . . 3 . . . Kinetic 11263 | 43 863 414 . 449 816 . . 912 . 496 . . 41 299 510 . 28 449 . 5943 . Thermal 6530 | 38 86 . . . 1798 1876 355 424 . 38 . . . . 1208 . 326 185 . 196 . Explosive 11358 | . . . . . . 1233 . 459 3850 240 658 . . 2093 . 2220 . . . . 605 Electromagnetic 1369 | . . . . . . . . . . . 525 235 . . . . . 191 . 418 . Impact . | . . . . . . . . . . . . . . . . . . . . . . Slashing 390 | . . . . . . . . . . 276 . . . . . . . 114 . . . Piercing . | . . . . . . . . . . . . . . . . . . . . . . Highest Corruption 28 | . 2 2 2 2 . . . 1 1 3 3 3 3 . 4 4 4 3 20 28 28 Average Corruption 6 | . 2 2 2 2 . . . 1 1 1 3 3 3 . 3 4 4 2 9 22 28 Corruption Purged . | . . . . . . . . . . . . . . . . . . . . . . Corruption Blocked . | . . . . . . . . . . . . . . . . . . . . . . Effects 252 | . 8 20 6 17 . . . . 6 7 13 22 2 . 5 19 7 3 9 91 17 Message Errors 51 | . 2 6 1 4 . . . . 1 2 4 6 1 . 2 3 1 1 1 14 2 Matter Fused 63 | . 2 3 2 6 . . . . . 2 3 3 . . 2 4 2 1 2 25 6 Heat Flow Errors 34 | . 2 1 . 1 . . . . . . 1 5 . . 1 2 1 . 1 15 4 Energy Discharges 38 | . . 1 2 3 . . . . 1 2 2 2 1 . . 3 . 1 2 18 . Parts Rejected 4 | . . 1 . . . . . . . . . 1 . . . 1 . . . 1 . Parts Fused 4 | . . 2 . . . . . . . . . . . . . 1 . . . 1 . Data Loss (minor) 28 | . 1 4 1 1 . . . . 1 1 1 3 . . . 1 2 . 1 10 1 Data Loss (major) 9 | . 1 1 . . . . . . 1 . . 2 . . . 1 1 . . 1 1 Misfires 2 | . . . . 1 . . . . . . . . . . . 1 . . . . . Alerts 9 | . . 1 . 1 . . . . 2 . 2 . . . . 2 . . . . 1 Misdirections 4 | . . . . . . . . . . . . . . . . . . . 2 1 1 Weapon Failures 6 | . . . . . . . . . . . . . . . . . . . . 5 1 Overload Shots . | . . . . . . . . . . . . . . . . . . . . . . Overflow Damage 2268 | . 3 . . . 2 62 . 10 68 84 193 48 . 80 199 66 . 22 . 1367 64 Projectiles 1794 | . 3 . . . 2 . . 2 . 61 90 48 . . 199 . . 22 . 1367 . Explosions 474 | . . . . . . 62 . 8 68 23 103 . . 80 . 66 . . . . 64 Melee . | . . . . . . . . . . . . . . . . . . . . . . Knockbacks 69 | . 6 6 . 5 2 . . 7 . 2 . . . 2 . . . . . 39 . Impact . | . . . . . . . . . . . . . . . . . . . . . . Kinetic 63 | . 6 5 . 5 2 . . 6 . 1 . . . 2 . . . . . 36 . Secondary 6 | . . 1 . . . . . 1 . 1 . . . . . . . . . 3 . Self-Inflicted Damage 481 | . . . . . . . . 172 . . 71 . . 187 . 24 . . . . 27 Shots 11 | . . . . . . . . 2 . . 1 . . 5 . 1 . . . . 2 Rammed 4 | . . . . . . . . . . . . . . 4 . . . . . . . Targets Rammed 7 | . . . . . . . . . . . . . . 6 . . . 1 . . . Kicked 1 | . . . . . . . . . . . . . . . . . . 1 . . . Crushed 2 | . . . . . . . . . . . . . . 2 . . . . . . . Highest Temperature 440 | 90 271 210 . 233 244 39 128 339 . 404 304 249 201 413 440 232 167 132 252 312 240 Average Temperature 91 | 53 57 58 . 62 68 11 48 109 . 179 144 108 121 179 162 96 42 26 149 102 105 Received Heat Transfer 2539 | . 66 93 . . 279 378 21 342 . . 54 63 . 174 162 . 45 46 . 744 72 Effects 12 | . . . . 1 . . . . . 4 . . . 2 1 . . . . 4 . Energy Bleed 1 | . . . . 1 . . . . . . . . . . . . . . . . . Interference 5 | . . . . . . . . . . . . . . 1 . . . . . 4 . Short Circuit 2 | . . . . . . . . . . 1 . . . 1 . . . . . . . Damage (minor) 1 | . . . . . . . . . . . . . . . 1 . . . . . . Damage (major) 3 | . . . . . . . . . . 3 . . . . . . . . . . . Siege Activations . | . . . . . . . . . . . . . . . . . . . . . . Robots Corrupted 4 | . . . . . . . . . . . 1 1 . . . . . 1 . 1 . Combat Hostiles 2 | . . . . . . . . . . . . 1 . . . . . 1 . . . Parts Fried 12 | . . . . . . . . . . . 5 2 . . . . . 1 . 4 . Impact Corruptions 4 | . . . . . . . . . . . . . . 1 . . . . . 3 . Robots Melted 3 | . . . . . . 2 . 1 . . . . . . . . . . . . . Combat Hostiles 3 | . . . . . . 2 . 1 . . . . . . . . . . . . . Parts Melted 28 | . 2 . . . 2 16 . 4 . . . . . . 2 . . . . 2 . Heat Transferred 12075 | 111 333 . . . 4075 4350 794 835 . 37 . . . . 800 . 370 296 . 74 . Parts Sabotaged . | . . . . . . . . . . . . . . . . . . . . . . Parts Stolen . | . . . . . . . . . . . . . . . . . . . . . . Parts Stripped . | . . . . . . . . . . . . . . . . . . . . . . Power Chain Reactions . | . . . . . . . . . . . . . . . . . . . . . . Alert | -11 -10 -10 -10 -9 -8 -8 -8 -6 -6 -6 -6 -6 -6 -5 -5 -5 -5 -4 -4 -4 -4 ------- Run | Yrd Mat Min Exi Min Mat Sto Rec Fac Was Fac Low Low Zio Pro Fac Was Fac Fac Was Fac Upp Peak Influence 775 | 20 294 187 . 169 438 775 536 549 209 636 . . . . 359 221 149 202 70 270 . Initial 312 | . 13 88 . . 1 10 301 312 118 6 . . . . 276 122 . 65 70 49 . Average 207 | 5 142 92 . 45 236 477 362 384 135 274 . . . . 249 76 59 88 60 159 . Maximum Alert Level 3 | . 1 . . . 2 3 2 2 1 2 . . . . 1 1 . 1 . 1 . Low Security (%) 54 | 100 51 100 . 100 34 9 7 1 58 42 . . . . 26 97 100 95 100 66 . Level 1 31 | . 48 . . . 60 18 60 64 41 18 . . . . 73 2 . 4 . 33 . Level 2 12 | . . . . . 5 59 31 33 . 39 . . . . . . . . . . . Level 3 1 | . . . . . . 13 . . . . . . . . . . . . . . . Level 4 . | . . . . . . . . . . . . . . . . . . . . . . Level 5 . | . . . . . . . . . . . . . . . . . . . . . . High Security . | . . . . . . . . . . . . . . . . . . . . . . Max Security . | . . . . . . . . . . . . . . . . . . . . . . Squads Dispatched 46 | . 2 1 . 1 5 4 . 6 . 4 . . . 1 8 . 5 1 . 8 . Investigation 11 | . 2 . . 1 3 1 . 1 . . . . . . 2 . 1 . . . . Extermination 8 | . . . . . . . . 1 . 1 . . . . 1 . . . . 5 . Reinforcement 18 | . . . . . 2 1 . 4 . 3 . . . . 2 . 2 1 . 3 . Assault 4 | . . 1 . . . 2 . . . . . . . 1 . . . . . . . Garrison 5 | . . . . . . . . . . . . . . . 3 . 2 . . . . Intercept . | . . . . . . . . . . . . . . . . . . . . . . Searches Triggered 1 | . . . . . . . . 1 . . . . . . . . . . . . . Construction Impeded 6 | . . . . . . . . 2 . 1 . . . . . . . . . 3 . Haulers Reinforced 2 | . . . . . . . . 1 . . . . . . . . 1 . . . . Active Scanning Responses . | . . . . . . . . . . . . . . . . . . . . . . Cargo Convoy Interrupts 1 | . . . . . . . . . . . . . . . 1 . . . . . . Stealth | -11 -10 -10 -10 -9 -8 -8 -8 -6 -6 -6 -6 -6 -6 -5 -5 -5 -5 -4 -4 -4 -4 --------- Run | Yrd Mat Min Exi Min Mat Sto Rec Fac Was Fac Low Low Zio Pro Fac Was Fac Fac Was Fac Upp Distress Signals 15 | . 1 . . . 3 2 1 . . 3 . . . . 1 . 3 1 . . . Communications Jammed . | . . . . . . . . . . . . . . . . . . . . . . Distress Signals . | . . . . . . . . . . . . . . . . . . . . . . Times Spotted 323 | . 11 10 . 11 33 43 7 20 6 12 14 9 8 22 25 7 22 13 6 29 15 Peak Tracking Total 12 | . 3 3 . 4 5 6 2 5 5 3 7 4 5 6 8 6 12 7 5 5 6 Tactical Retreats 33 | . . 1 . 1 1 1 . 4 . 1 1 1 2 2 3 1 3 5 1 1 4 Traps | -11 -10 -10 -10 -9 -8 -8 -8 -6 -6 -6 -6 -6 -6 -5 -5 -5 -5 -4 -4 -4 -4 ------- Run | Yrd Mat Min Exi Min Mat Sto Rec Fac Was Fac Low Low Zio Pro Fac Was Fac Fac Was Fac Upp Traps Triggered 12 | . 1 . . 1 3 1 . 1 . . . . . . 2 . 1 1 . 1 . Indirectly . | . . . . . . . . . . . . . . . . . . . . . . Trap Hack Attempts . | . . . . . . . . . . . . . . . . . . . . . . Triggered . | . . . . . . . . . . . . . . . . . . . . . . Disarmed . | . . . . . . . . . . . . . . . . . . . . . . Reprogrammed 12 | . 12 . . . . . . . . . . . . . . . . . . . . Reused 4 | . 4 . . . . . . . . . . . . . . . . . . . . Traps Extracted . | . . . . . . . . . . . . . . . . . . . . . . Installed . | . . . . . . . . . . . . . . . . . . . . . . Triggered 6 | . 4 . . . . . . . . . . . . . 2 . . . . . . Most Traps Carried 3 | . . . . . . . . . . . 3 3 3 3 3 3 . . . . . Machines | -11 -10 -10 -10 -9 -8 -8 -8 -6 -6 -6 -6 -6 -6 -5 -5 -5 -5 -4 -4 -4 -4 ---------- Run | Yrd Mat Min Exi Min Mat Sto Rec Fac Was Fac Low Low Zio Pro Fac Was Fac Fac Was Fac Upp Machines Disabled 27 | . . 3 . . . 9 2 4 . 3 . . . 1 3 . . . . 2 . Max in Single Turn 2 | . . 1 . . . 2 1 2 . 1 . . . 1 1 . . . . 1 . Machines Repaired . | . . . . . . . . . . . . . . . . . . . . . . Machines Dismantled . | . . . . . . . . . . . . . . . . . . . . . . Machines Sabotaged . | . . . . . . . . . . . . . . . . . . . . . . Overloaded Fab Kills . | . . . . . . . . . . . . . . . . . . . . . . Hacking | -11 -10 -10 -10 -9 -8 -8 -8 -6 -6 -6 -6 -6 -6 -5 -5 -5 -5 -4 -4 -4 -4 --------- Run | Yrd Mat Min Exi Min Mat Sto Rec Fac Was Fac Low Low Zio Pro Fac Was Fac Fac Was Fac Upp Machines Accessed 70 | . 7 1 2 2 7 16 12 3 . 4 1 1 . . 6 . 4 1 . 3 . Terminals 46 | . 5 1 . . 5 16 5 1 . 3 . . . . 5 . 1 1 . 3 . Fabricators 4 | . . . . . . . . 1 . . . . . . 1 . 2 . . . . Repair Stations . | . . . . . . . . . . . . . . . . . . . . . . Recycling Units 9 | . 2 . . . 1 . 6 . . . . . . . . . . . . . . Scanalyzers 1 | . . . . . 1 . . . . . . . . . . . . . . . . Garrison Access 3 | . . . . . . . . 1 . 1 . . . . . . 1 . . . . Total Hacks 159 | . 21 2 2 2 23 30 22 8 . 10 1 1 . . 23 . 7 2 . 5 . Successful 93 | . 13 1 2 2 11 23 16 3 . 5 1 1 . . 13 . 1 1 . . . Failed 65 | . 7 1 . . 12 7 6 5 . 5 . . . . 10 . 6 1 . 5 . Catastrophic 8 | . . . . . . 2 1 . . 1 . . . . 2 . 1 . . 1 . Database Lockouts 1 | . 1 . . . . . . . . . . . . . . . . . . . . Manual 78 | . 12 2 1 . 18 9 16 3 . 3 . . . . 4 . 4 2 . 4 . Terminals 123 | . 19 2 . . 20 30 14 3 . 7 . . . . 20 . 1 2 . 5 . Fabricators 10 | . . . . . . . . 3 . . . . . . 3 . 4 . . . . Repair Stations . | . . . . . . . . . . . . . . . . . . . . . . Recycling Units 9 | . 2 . . . 1 . 6 . . . . . . . . . . . . . . Scanalyzers 2 | . . . . . 2 . . . . . . . . . . . . . . . . Garrison Access 7 | . . . . . . . . 2 . 3 . . . . . . 2 . . . . Terminal Hacks 61 | . 8 1 2 2 6 21 8 . . 3 1 1 . . 8 . . . . . . Record 1 | . . . 1 . . . . . . . . . . . . . . . . . . Part Schematic 3 | . . . . . . 1 1 . . . . . . . 1 . . . . . . Robot Analysis 9 | . 1 1 . . 1 5 1 . . . . . . . . . . . . . . Prototype ID Bank 9 | . . . . . . 3 2 . . 2 . . . . 2 . . . . . . Open Door 12 | . . . . 2 . 8 . . . . 1 1 . . . . . . . . . Level Access Points 1 | . 1 . . . . . . . . . . . . . . . . . . . . Branch Access Points 3 | . . . . . 1 . . . . 1 . . . . 1 . . . . . . Emergency Access Points 1 | . 1 . . . . . . . . . . . . . . . . . . . . Terminal Index 1 | . . . . . 1 . . . . . . . . . . . . . . . . Alert Level 4 | . 1 . . . 1 1 . . . . . . . . 1 . . . . . . Unreport Threat 5 | . . . . . 2 1 2 . . . . . . . . . . . . . . Locate Traps 2 | . 1 . . . . 1 . . . . . . . . . . . . . . . Reprogram Traps 2 | . 2 . . . . . . . . . . . . . . . . . . . . Patrol Status 1 | . . . . . . . . . . . . . . . 1 . . . . . . Recall Reinforcements 1 | . . . . . . . . . . . . . . . 1 . . . . . . Hauler Manifests 3 | . 1 . . . . 1 . . . . . . . . 1 . . . . . . Derelict Proto ID Bank 1 | . . . 1 . . . . . . . . . . . . . . . . . . Release Object 2 | . . . . . . . 2 . . . . . . . . . . . . . . Fabricator Hacks 5 | . . . . . . . . 2 . . . . . . 2 . 1 . . . . Network Status 2 | . . . . . . . . 1 . . . . . . . . 1 . . . . Load Schematic 2 | . . . . . . . . 1 . . . . . . 1 . . . . . . Build 1 | . . . . . . . . . . . . . . . 1 . . . . . . Repair Station Hacks . | . . . . . . . . . . . . . . . . . . . . . . Recycling Unit Hacks . | . . . . . . . . . . . . . . . . . . . . . . Scanalyzer 2 | . . . . . 2 . . . . . . . . . . . . . . . . Insert Component 1 | . . . . . 1 . . . . . . . . . . . . . . . . Analyze 1 | . . . . . 1 . . . . . . . . . . . . . . . . Garrison Access Hacks . | . . . . . . . . . . . . . . . . . . . . . . Unauthorized Hacks 25 | . 5 . . . 3 2 8 1 . 2 . . . . 3 . . 1 . . . Terminals 15 | . 3 . . . 2 2 2 . . 2 . . . . 3 . . 1 . . . Track 1 | . 1 . . . . . . . . . . . . . . . . . . . . Botnet 13 | . 2 . . . 2 2 2 . . 2 . . . . 2 . . 1 . . . Disrupt 1 | . . . . . . . . . . . . . . . 1 . . . . . . Fabricators 1 | . . . . . . . . 1 . . . . . . . . . . . . . Recompile 1 | . . . . . . . . 1 . . . . . . . . . . . . . Repair Stations . | . . . . . . . . . . . . . . . . . . . . . . Recycling Units 9 | . 2 . . . 1 . 6 . . . . . . . . . . . . . . Tunnel 9 | . 2 . . . 1 . 6 . . . . . . . . . . . . . . Scanalyzers . | . . . . . . . . . . . . . . . . . . . . . . Garrison Access . | . . . . . . . . . . . . . . . . . . . . . . Data Cores Recovered 1 | . . . . . . 1 . . . . . . . . . . . . . . . Used 1 | . . . . . . 1 . . . . . . . . . . . . . . . Hacking Detections 47 | . 4 1 . . 6 11 5 2 . 4 . . . . 6 . 4 1 . 3 . Full Trace Events 3 | . . . . . 1 1 . . . . . . . . . . 1 . . . . Feedback Events . | . . . . . . . . . . . . . . . . . . . . . . Feedback Blocked . | . . . . . . . . . . . . . . . . . . . . . . Robot Schematics Acquired . | . . . . . . . . . . . . . . . . . . . . . . Robots Built . | . . . . . . . . . . . . . . . . . . . . . . Authchips . | . . . . . . . . . . . . . . . . . . . . . . Time . | . . . . . . . . . . . . . . . . . . . . . . Total Robot Build Rating . | . . . . . . . . . . . . . . . . . . . . . . Part Schematics Acquired 4 | . . . . . 1 1 1 . . . . . . . 1 . . . . . . Parts Built 2 | . . . . . . . . . . . . . . . 2 . . . . . . Authchips 1 | . . . . . . . . . . . . . . . 1 . . . . . . Time 58 | . . . . . . . . . . . . . . . 58 . . . . . . Total Part Build Rating 14 | . . . . . . . . . . . . . . . 14 . . . . . . Parts Repaired . | . . . . . . . . . . . . . . . . . . . . . . Time . | . . . . . . . . . . . . . . . . . . . . . . Parts Recycled . | . . . . . . . . . . . . . . . . . . . . . . Recycled Matter . | . . . . . . . . . . . . . . . . . . . . . . Retrieved Matter . | . . . . . . . . . . . . . . . . . . . . . . Retrieved Components . | . . . . . . . . . . . . . . . . . . . . . . Parts Scanalyzed 1 | . . . . . 1 . . . . . . . . . . . . . . . . Part Schematics Acquired 1 | . . . . . 1 . . . . . . . . . . . . . . . . Parts Damaged . | . . . . . . . . . . . . . . . . . . . . . . Bothacking | -11 -10 -10 -10 -9 -8 -8 -8 -6 -6 -6 -6 -6 -6 -5 -5 -5 -5 -4 -4 -4 -4 ------------ Run | Yrd Mat Min Exi Min Mat Sto Rec Fac Was Fac Low Low Zio Pro Fac Was Fac Fac Was Fac Upp Used RIF Installer . | . . . . . . . . . . . . . . . . . . . . . . Robots Hacked 1 | . . . . . . . . . . . . . . . . . . 1 . . . Non-combat 1 | . . . . . . . . . . . . . . . . . . 1 . . . Combat . | . . . . . . . . . . . . . . . . . . . . . . Robot Hacks Applied 1 | . . . . . . . . . . . . . . . . . . 1 . . . find_chute 1 | . . . . . . . . . . . . . . . . . . 1 . . . Relay Couplers Released . | . . . . . . . . . . . . . . . . . . . . . . Fabnet Peak Effective % . | . . . . . . . . . . . . . . . . . . . . . . Robots Rewired 2 | . . . . . . . . . . . 2 . . . . . . . . . . Allies Hacked . | . . . . . . . . . . . . . . . . . . . . . . Hacks Repelled . | . . . . . . . . . . . . . . . . . . . . . . Allies | -11 -10 -10 -10 -9 -8 -8 -8 -6 -6 -6 -6 -6 -6 -5 -5 -5 -5 -4 -4 -4 -4 -------- Run | Yrd Mat Min Exi Min Mat Sto Rec Fac Was Fac Low Low Zio Pro Fac Was Fac Fac Was Fac Upp Total Allies 56 | . . 3 . . . 12 . . 19 . 2 . . . . 19 . . 1 . . Largest Group 19 | . . 3 3 1 . 10 10 10 19 19 9 9 3 . . 19 4 . 1 . . Highest-Rated Group 684 | . . 79 79 31 . 173 173 173 684 681 306 300 96 . . 684 161 . 46 . . Highest-Rated Ally 50 | . . 31 31 31 . 31 29 29 50 50 46 46 46 . . 50 46 . 46 . . Total Orders 6 | . . . . . . . . 1 . . . 2 . . . . . . . . 3 ROAM 1 | . . . . . . . . 1 . . . . . . . . . . . . . EXPLORE 5 | . . . . . . . . . . . . 2 . . . . . . . . 3 Ally Attacks 452 | . . 27 . 11 . 40 40 19 . 71 49 27 11 . . 127 22 . 8 . . Total Damage 13157 | . . 383 . 128 . 621 518 236 . 2601 1348 570 270 . . 5847 396 . 239 . . Kills 75 | . . 6 . 2 . 6 8 2 . 18 10 7 2 . . 12 2 . . . . Allies Corrupted . | . . . . . . . . . . . . . . . . . . . . . . Allies Melted . | . . . . . . . . . . . . . . . . . . . . . . Intel | -11 -10 -10 -10 -9 -8 -8 -8 -6 -6 -6 -6 -6 -6 -5 -5 -5 -5 -4 -4 -4 -4 ------- Run | Yrd Mat Min Exi Min Mat Sto Rec Fac Was Fac Low Low Zio Pro Fac Was Fac Fac Was Fac Upp Robot Analysis Total 9 | . 1 1 . . 1 5 1 . . . . . . . . . . . . . . Derelict Logs Recovered 11 | . . 2 . 1 . . . . . . 3 3 . 1 . . . . . . 1 Drone Launches 5 | . . . . . . . . . . . . 2 . . . . . . . . 3 Drone Recoveries 2 | . . . . . . . . . . . . . . . . . . . . . 2 Exploration | -11 -10 -10 -10 -9 -8 -8 -8 -6 -6 -6 -6 -6 -6 -5 -5 -5 -5 -4 -4 -4 -4 ------------- Run | Yrd Mat Min Exi Min Mat Sto Rec Fac Was Fac Low Low Zio Pro Fac Was Fac Fac Was Fac Upp Turns Passed 18886 | 97 1140 1265 409 1115 1217 1357 1022 953 551 916 990 1191 263 870 1123 846 531 623 177 1866 364 Spaces Moved 10646 | 47 603 738 254 549 558 639 626 864 351 684 757 630 137 415 488 293 404 286 187 767 369 Core 916 | 3 . . . . . . . . . . . . . . . 276 . 100 84 84 369 Treads 5699 | 44 603 738 254 454 514 639 365 214 . 208 336 383 137 312 . . . . . 498 . Legs 1158 | . . . . . 1 . 208 511 . 52 . . . 103 148 . 116 19 . . . Wheels 1349 | . . . . 95 43 . 53 139 351 413 . . . . . . 255 . . . . Hover 613 | . . . . . . . . . . 11 . . . . 97 17 33 167 103 185 . Flight 911 | . . . . . . . . . . . 421 247 . . 243 . . . . . . Fastest Speed 50 | 50 160 160 160 130 130 151 78 78 105 75 75 137 192 192 141 50 90 66 66 50 50 Average Speed 141 | 152 160 160 160 187 144 156 130 89 113 111 119 180 192 192 170 230 102 169 83 126 51 Slowest Speed 450 | 160 160 160 160 240 360 163 165 154 130 145 168 192 192 192 192 450 162 350 250 300 100 Overloaded Moves . | . . . . . . . . . . . . . . . . . . . . . . Propulsion Burnouts . | . . . . . . . . . . . . . . . . . . . . . . Robots Hopped 1 | . . . . . . . . . . 1 . . . . . . . . . . . Cave-ins Triggered . | . . . . . . . . . . . . . . . . . . . . . . Exploration Rate (%) 58 | 4 90 99 63 93 59 89 96 18 96 20 91 85 13 70 16 94 17 7 92 16 68 Regions Visited 21 Branch Regions 10 Pre-discovered Areas 10 | . 2 . 1 . 1 . 6 . . . . . . . . . . . . . . Known Exits Taken 7 | . . . . . 1 . . . . 1 1 1 1 1 . . 1 . . . . Unknown Exits Taken 8 | 1 1 1 1 1 . 1 1 . . . . . . . . . . . . 1 . Scrap Searched 10 | . . 1 . 1 . . . . . . 1 5 . . . . . . . . 2 Spaces Dug 50 | . . . . . 1 12 . 4 . 1 . . . 20 . . 5 5 . 2 . Terrain Destroyed 847 | . 2 2 . 6 16 96 . 55 196 20 71 1 . 151 40 50 5 11 . 53 72 Melee 6 | . . . . . . . . . . 1 . . . . . . 5 . . . . Projectile 130 | . 2 2 . 6 16 1 . 12 . 5 1 1 . 6 14 . . 11 . 53 . AOE 711 | . . . . . . 95 . 43 196 14 70 . . 145 26 50 . . . . 72 Terrain Rammed . | . . . . . . . . . . . . . . . . . . . . . . Walls Destroyed . | . . . . . . . . . . . . . . . . . . . . . . Machines Disabled . | . . . . . . . . . . . . . . . . . . . . . . Actions | -11 -10 -10 -10 -9 -8 -8 -8 -6 -6 -6 -6 -6 -6 -5 -5 -5 -5 -4 -4 -4 -4 --------- Run | Yrd Mat Min Exi Min Mat Sto Rec Fac Was Fac Low Low Zio Pro Fac Was Fac Fac Was Fac Upp Total 13639 | 60 693 792 259 604 782 844 820 1006 483 822 827 681 137 460 756 468 493 378 210 1529 535 Wait 1960 | 2 22 34 . 21 101 61 149 70 88 86 33 36 . 10 220 148 69 57 20 583 150 Move 10626 | 46 602 737 253 548 557 638 625 864 350 681 756 629 136 414 488 292 403 286 186 766 369 Hop 1 | . . . . . . . . . . 1 . . . . . . . . . . . Pick Up 65 | . 12 1 2 6 4 3 8 3 1 4 4 2 . . . 1 1 . . 13 . Fast Attach 87 | 7 . 1 . 2 19 22 1 3 1 2 . 2 . . 5 4 1 3 1 11 2 Attach 37 | . . . . 2 3 1 1 4 2 6 2 1 . 2 3 . 2 1 . 4 3 Detach 41 | . . . 1 . 1 6 3 4 4 5 . 2 . 1 3 3 . 2 1 2 3 Swap 41 | . 7 2 . 2 3 13 . . . 2 7 . . 1 3 . . . . 1 . Drop 137 | . 7 2 3 7 13 23 17 2 12 9 . 4 . 1 2 17 2 1 2 12 1 Fire 614 | 5 43 15 . 16 81 76 16 56 25 20 15 5 1 25 32 3 10 26 . 137 7 Melee 23 | . . . . . . 1 . . . 6 10 . . . . . 5 1 . . . Ram . | . . . . . . . . . . . . . . . . . . . . . . Kick 1 | . . . . . . . . . . . . . . . . . . 1 . . . Crush 6 | . . . . . . . . . . . . . . 6 . . . . . . . Escape Stasis . | . . . . . . . . . . . . . . . . . . . . . . Rewire . | . . . . . . . . . . . . . . . . . . . . . . Trap . | . . . . . . . . . . . . . . . . . . . . . . Miscellaneous . | . . . . . . . . . . . . . . . . . . . . . . Route ------- -11/Scrapyard -10/Materials (discovered 5 exits: *Mat x3 / *Min x2) -10/Mines (discovered 3 exits: *Mat x2 / *Exi) -10/Exiles -9/Mines (discovered 2 exits: *Mat x2) -8/Materials (discovered 2 exits: [*Fac] / *Sto) -8/Storage (discovered 2 exits: [*Fac] / *Rec) -8/Recycling -6/Factory -6/Waste -6/Factory (discovered 3 exits: *Fac / *Low x2) -6/Lower Caves -6/Lower Caves (discovered 2 exits: *Fac / *Zio) -6/Zion -5/Proximity Caves -5/Factory (discovered 4 exits: *Fac x2 / Upp x2) -5/Waste -5/Factory -4/Factory -4/Waste -4/Factory -4/Upper Caves History --------- Turn | Location | Event 2 | -11/Scrapyard | Met Revision 17 28 | -11/Scrapyard | Discovered new exit (range 16) 98 | -11/Scrapyard | Entered Materials 322 | -10/Materials | Build established: Mutant 382 | -10/Materials | Discovered new exit (range 9) 505 | -10/Materials | Discovered new exit (range 16) 601 | -10/Materials | Discovered new exit (range 6) 638 | -10/Materials | Discovered new exit (range 16) 699 | -10/Materials | Central database locked down 773 | -10/Materials | Identified exit to Materials 1238 | -10/Materials | Entered Mines 1277 | -10/Mines | Joined a pair of Derelicts in attacking an 0b10 outpost 1341 | -10/Mines | Discovered exit to Materials (range 7) 1571 | -10/Mines | Learned Materials interactive machine intel 1603 | -10/Mines | Met a Derelict testing a Signal Generator 1608 | -10/Mines | Learned Materials stockpile data 2059 | -10/Mines | Discovered exit to Materials (range 16) 2135 | -10/Mines | A weapon hastily lodged in a ceiling crevice suddenly fell to the ground 2150 | -10/Mines | Discovered new exit (range 4) 2225 | -10/Mines | Found a hidden stash of uninstalled traps 2474 | -10/Mines | Deemed a non-threat by the Exiles lab entrance 2503 | -10/Mines | Entered Exiles 2503 | -10/Exiles | Accompanied by 3 allies 2533 | -10/Exiles | Led the pair of lost Derelicts to a safe place 2542 | -10/Exiles | Met 8R-AWN 2575 | -10/Exiles | Met EX-HEX 2621 | -10/Exiles | Met EX-BIN 2640 | -10/Exiles | Aligned with FarCom system 2642 | -10/Exiles | Given EX-Vault access code 2679 | -10/Exiles | Opened EX-Vault 2689 | -10/Exiles | Found Flying Fortress v7 2726 | -10/Exiles | Warned to stay clear of 0b10 Research branches 2774 | -10/Exiles | Met EX-DEC 2794 | -10/Exiles | Learned location of Zion (-6) 2890 | -10/Exiles | Discovered new exit (range 15) 2912 | -10/Exiles | Left Exiles lab with Flying Fortress v7 2912 | -10/Exiles | Entered Mines 2912 | -9/Mines | Accompanied by 1 ally 2971 | -9/Mines | Assembled infested the area 3006 | -9/Mines | Discovered new exit (range 16) 3089 | -9/Mines | Learned Materials stockpile data 3106 | -9/Mines | Met a Derelict shopkeep closing up shop 3325 | -9/Mines | Discovered new exit (range 5) 3460 | -9/Mines | Met a Derelict who couldn't figure out how to use a Trap Extractor 4027 | -9/Mines | Entered Materials 4027 | -8/Materials | Evolved 4 slots: Propulsion x2, Utility x2 4029 | -8/Materials | Loaded intel: 17 interactive machine locations 4429 | -8/Materials | Discovered new exit (range 5) 4720 | -8/Materials | Identified exit to Storage 5244 | -8/Materials | Entered Storage 5317 | -8/Storage | Met a pair of Derelict thieves 5910 | -8/Storage | Discovered new exit (range 16) 6467 | -8/Storage | Assisted by bots powering up and referring to "LRC-V3" 6583 | -8/Storage | Used back door to open Recycling access 6583 | -8/Storage | Discovered new exit (range 4) 6601 | -8/Storage | Entered Recycling 6601 | -8/Recycling | Accompanied by 10 allies 6740 | -8/Recycling | Build established: Commander-Mutant 6914 | -8/Recycling | Discovered new exit (range 5) 7028 | -8/Recycling | Scanned before Scraplab entrance 7052 | -8/Recycling | Entered Scraplab 7065 | -8/Recycling | Discovered new exit (range 2) 7086 | -8/Recycling | Angered Scraplab inhabitants 7086 | -8/Recycling | Found Prototype Device 7086 | -8/Recycling | Identified Scrap Engine 7537 | -8/Recycling | Build established: Commander-Construct 7623 | -8/Recycling | Entered Factory 7623 | -6/Factory | Accompanied by 10 allies 7623 | -6/Factory | Evolved 4 slots: Power x1, Propulsion x1, Utility x1, Weapon x1 7637 | -6/Factory | Discovered new exit (range 9) 7973 | -6/Factory | Search patrols dispatched 8165 | -6/Factory | Build established: Construct 8576 | -6/Factory | Sucked down chute 8576 | -6/Factory | Entered Waste 8611 | -6/Waste | Spotted C-40 Crusher 8614 | -6/Waste | Spotted C-40 Crusher 8621 | -6/Waste | Spotted C-40 Crusher 8624 | -6/Waste | Spotted C-40 Crusher 8662 | -6/Waste | Destroyed C-40 Crusher 8666 | -6/Waste | Destroyed C-40 Crusher 8668 | -6/Waste | Destroyed C-40 Crusher 8676 | -6/Waste | Spotted C-40 Crusher 8741 | -6/Waste | Destroyed C-40 Crusher 8743 | -6/Waste | Destroyed C-40 Crusher 8745 | -6/Waste | Spotted C-40 Crusher 8782 | -6/Waste | Destroyed C-40 Crusher 8873 | -6/Waste | Warlord forces began an assault 9075 | -6/Waste | Discovered new exit (range 13) 9127 | -6/Waste | Entered Factory 9127 | -6/Factory | Accompanied by 19 allies 9642 | -6/Factory | Discovered new exit (range 16) 9666 | -6/Factory | Lost 5 allies 9670 | -6/Factory | Identified exit to Factory 9820 | -6/Factory | Lost 3 allies 9844 | -6/Factory | Identified exit to Lower Caves 10043 | -6/Factory | Entered Lower Caves 10043 | -6/Lower Caves | Accompanied by 7 allies 10054 | -6/Lower Caves | Learned location of 1 exit from Factory 10063 | -6/Lower Caves | Learned Factory machine intel 10068 | -6/Lower Caves | Learned Factory terminal intel 10275 | -6/Lower Caves | Attracted the attention of an 0b10 checkpoint 10678 | -6/Lower Caves | Attracted the attention of an 0b10 outpost 10769 | -6/Lower Caves | Encountered a Warlord checkpoint 10861 | -6/Lower Caves | Discovered new exit (range 11) 10879 | -6/Lower Caves | Spotted B-75 Beast 10895 | -6/Lower Caves | Allies destroyed B-75 Beast 11018 | -6/Lower Caves | Identified exit to Lower Caves 11033 | -6/Lower Caves | Entered another Lower Caves area 11033 | -6/Lower Caves | Accompanied by 9 allies 11149 | -6/Lower Caves | Lost 5 allies 11198 | -6/Lower Caves | Learned Factory security intel 11205 | -6/Lower Caves | Learned Factory non-interactive machine intel 11896 | -6/Lower Caves | Discovered new exit (range 15) 11919 | -6/Lower Caves | Identified exit to Zion 12224 | -6/Lower Caves | Entered Zion 12224 | -6/Zion | Accompanied by 3 allies 12399 | -6/Zion | System corruption cleaned by Quarantine Array 12406 | -6/Zion | Attacked by Zionites 12406 | -6/Zion | Spotted MT-Y3I(B) 12406 | -6/Zion | Spotted VK-IHJ(B) 12459 | -6/Zion | Discovered new exit (range 16) 12485 | -6/Zion | Identified exit to Proximity Caves 12486 | -6/Zion | Lost 3 allies 12487 | -6/Zion | Entered Proximity Caves 12490 | -5/Proximity Caves | Spotter reported a threat 12633 | -5/Proximity Caves | Learned Factory emergency access door positions 13140 | -5/Proximity Caves | Spotted B-75 Beast 13243 | -5/Proximity Caves | Attracted the attention of an 0b10 outpost 13292 | -5/Proximity Caves | Destroyed 11 combat bots 13308 | -5/Proximity Caves | Discovered exit to Factory (range 10) 13357 | -5/Proximity Caves | Entered Factory 13357 | -5/Factory | Evolved 2 slots: Propulsion x1, Utility x1 13358 | -5/Factory | Identified exit to Factory 13361 | -5/Factory | Loaded intel: 250 machine locations 13362 | -5/Factory | Loaded intel: 199 non-interactive machine locations 13363 | -5/Factory | Loaded intel: 25 terminal locations 13391 | -5/Factory | Identified exit to Upper Caves 13431 | -5/Factory | Discovered exit to Factory (range 11) 14005 | -5/Factory | Garrison activated, responded to threat 14045 | -5/Factory | Cargo convoy interrupted 14122 | -5/Factory | Fabricated Hyp. Mass Driver (x2) 14480 | -5/Factory | Manually triggered Chute Trap 14480 | -5/Factory | Sucked down chute 14480 | -5/Factory | Entered Waste 14498 | -5/Waste | Spotted C-40 Crusher 14503 | -5/Waste | Spotted C-40 Crusher 14506 | -5/Waste | Spotted C-40 Crusher 14530 | -5/Waste | Spotted C-40 Crusher 14536 | -5/Waste | Spotted C-40 Crusher 14549 | -5/Waste | Crushed by Compactor (0 parts destroyed, 1 dropped) 14558 | -5/Waste | Spotted C-40 Crusher 14561 | -5/Waste | Discovered new exit (range 16) 14575 | -5/Waste | Warlord forces began an assault 14576 | -5/Waste | Found Broken Fusion Bomb Launcher 14587 | -5/Waste | Allies destroyed C-40 Crusher 14604 | -5/Waste | Allies destroyed C-40 Crusher 14619 | -5/Waste | Destroyed C-40 Crusher 14620 | -5/Waste | Allies destroyed C-40 Crusher 14623 | -5/Waste | Allies destroyed C-40 Crusher 14650 | -5/Waste | Lost 13 allies 15326 | -5/Waste | Entered Factory 15326 | -5/Factory | Accompanied by 4 allies 15739 | -5/Factory | Garrison activated, responded to threat 15759 | -5/Factory | Lost 3 allies 15853 | -5/Factory | Discovered exit to Factory (range 3) 15857 | -5/Factory | Entered another Factory area 15857 | -4/Factory | Evolved 2 slots: Power x1, Weapon x1 16480 | -4/Factory | Manually triggered Chute Trap 16480 | -4/Factory | Sucked down chute 16480 | -4/Factory | Entered Waste 16481 | -4/Waste | Met a frightened Derelict 16491 | -4/Waste | Spotted C-40 Crusher 16495 | -4/Waste | EMP discharged 16495 | -4/Waste | Spotted C-40 Crusher 16518 | -4/Waste | Spotted C-40 Crusher 16523 | -4/Waste | Spotted C-40 Crusher 16562 | -4/Waste | Crushed by Compactor (1 part destroyed) 16564 | -4/Waste | Spotted C-40 Crusher 16575 | -4/Waste | Crushed by Compactor (0 parts destroyed, 1 dropped) 16595 | -4/Waste | EMP discharged 16595 | -4/Waste | System corruption reached 10% 16612 | -4/Waste | Spotted C-40 Crusher 16638 | -4/Waste | Discovered new exit (range 13) 16657 | -4/Waste | Entered Factory 16844 | -4/Factory | Discovered new exit (range 10) 18177 | -4/Factory | Found Quantum Capacitor 18363 | -4/Factory | Lost 3 parts (1p2n) 18495 | -4/Factory | Released all parts (8) 18498 | -4/Factory | Core integrity fell below 50% 18523 | -4/Factory | Entered Upper Caves 18527 | -4/Upper Caves | Learned 4 Research zone layouts 18532 | -4/Upper Caves | Spotted B-86 Titan 18546 | -4/Upper Caves | Attracted the attention of an 0b10 checkpoint 18564 | -4/Upper Caves | Core integrity fell below 20% 18575 | -4/Upper Caves | Encountered a Warlord checkpoint 18786 | -4/Upper Caves | Build established: Mutant 18887 | -4/Upper Caves | Destroyed by S-27 Virus with Autogun Last Messages --------------- 18675_ System corrupted: Heat flow error (+144). 18692_ System corrupted: Matter fused (-10). 18698_ Drone suffers critical hit (Blast). 18721_ Drone retrieved by Drone Bay. 18724_ Drone destroyed. 18727_ :FG HOFGZS JK5G%YDYCKRGM5XXP 18746_ System corrupted: Matter fused (-9). 18768_ Drone released from Drone Bay. 18786_ System corrupted: Matter fused (-9). 18798_ G-67 Veteran springs to life. 18801_ System corrupted: Substantial component data lost. 18813_ Drone retrieved by Drone Bay. 18816_ System corrupted: Heat flow error (+142). 18822_ Dropped Hacking Suite. 18826_ Acquired 81 matter. 18833_ System corrupted: IFF burst signal emitted. 18859_ Acquired 32 matter. 18873_ Smartbomb Launcher destroyed. Map ----- +----------------------------------------------------+ | ? ????## # # #??## | | ?? ????# ## ### ## #####+##+ | | ??# ###?### #?## ###### #" | | ??# #??# ## #??## ##????# #" | | ### #??# ### ##???## #?????# #" | | #### *#?#### #?????## #?????# #" | | ## %##???? #??????# #????? # | | % ### ##??? ?????? #????? #""" | | ### *%##?? ???? ????? #""" T | | ?????# #???###??## ????# #""" | | ????# %[ #?????????# ???# #""" "" | | # #????????? #####??# #?###+### | | ##???????? ##??????# ???????? | | ???# ##????????? #???????? ???????? | | ???## ##### #?????????## ????????# ???????? | | ????????#### ##??????????## ????????? ???????? | | ???????## ####????####### ?????????# ???????? | | ??????## ##??## #?## ??????????##??????? | | ??????# ##?# #??? ??????????????????? | | ?????# ## #?# ##?? ??????????????????? | | #?# ### ##?#??????????????????? | | ??#### ##ss ####?????????????????? | | ?????## ## ##????????????????? | | ??????## ## #????????????????? | | # ## ???????# ### #????????????????? | | ##??# ????????## ##?#@ #????????????????? | | ???? ?????????###??## ##????????????????? | | ??? #???????????????## ##?????????????????? | | ??## #??????????????????####??????????????????? | | ???#####?????????????????????????????????????????? | | ?????????????????????????????????????????????????? | | ?????????????????????????????????????????????????? | | ?????????????????????????????????????????????????? | | ?????????????????????????????????????????????????? | | ?????????????????????????????????????????????????? | | ?????????????????????????????????????????????????? | | ?????????????????????????????????????????????????? | | ?????????????????????????????????????????????????? | | ?????????????????????????????????????????????????? | | ?????????????????????????????????????????????????? | | ?????????????????????????????????????????????????? | | ?????????????????????????????????????????????????? | | ?????????????????????????????????????????????????? | | ?????????????????????????????????????????????????? | | ?????????????????????????????????????????????????? | | ?????????????????????????????????????????????????? | | | | | | | | | +----------------------------------------------------+ Best States ------------- Heat Dissipation 81 Coolant Potential 100 Energy Generation 48 Energy Capacity 602 Matter Stores 300 Matter Capacity 300 Sight Range 23 Robot Scan Range 16 Terrain Scan Density 10 Armor Coverage 225 Evasion (%) 59 Recoil Reduction 6 Kinecelleration 40 Offensive Hacking 12 Authchip Count 1 Trap Extractor Capacity 6 Item Schematics ----------------- Hcp. Storage Unit | -8/Materials | Scanalyzed Hpw. Shotgun | -8/Storage | Hacked Imp. Weapon Shielding | -8/Recycling | Hacked Hyp. Mass Driver | -5/Factory | Hacked Robot Schematics ------------------ None Fabricated ------------ Hyp. Mass Driver | x2 | -5/Factory | Authchip Alien Tech Used ----------------- None Achievements -------------- None Challenges ------------ None Game ------ Seed ElectronWavePlatform Manual? 0 Play Time 02:36:17 Cumulative 338.0 hours Start 2025.03.05 @ 20:24:53 End 2025.03.05 @ 23:03:48 Sessions 1 Manual Loads 0 Difficulty Rogue Special Mode None Game No. 77 Rogue 77 Adventurer 0 Explorer 0 Win Type - Total 20 Types 12/1/4/1/0/0/0/1/1 Lore% 79 Gallery% 83 Achievement% 76 Wizard Run 0 Options --------- Layout 1 ASCII 0 Keyboard 0 Movement Mouse Keybinds 0 Fullscreen 1 Font 24/Smallcaps Map View 50x35 Zoom Use 0% Tactical HUD 1 Map Filters NONE Filters NONE Steam 1 RUN: 9ed3ba39-b4cd-4148-8040-97af49331a96